fUST/lending_fUST_20240810
["ID","MTS","AMOUNT","RATE_DAILY","PERIOD"]
[334596888,1723296438415,-2000.0,0.000205,2]
[334596889,1723296438436,-172.18753546,0.00020503,2]
[334596890,1723296438456,-172.18753546,0.00020554,2]
[334596891,1723296438478,-249.79,0.00020567,3]
[334596892,1723296438499,-749.42,0.00020577,3]
[334596893,1723296438524,-1118.45823857,0.00020577,2]
[334596964,1723296632067,-500.0,0.00018904,2]
[334596965,1723296632077,-37779.90199611,0.0001999,2]
[334596999,1723296642579,-833.78545195,0.00019256,2]
[334597000,1723296642589,-39941.62247351,0.0001999,2]
[334597001,1723296642598,-499.58,0.0001999,3]
[334597002,1723296642607,-2602.22864022,0.0002,2]
[334597003,1723296642616,-24271.73575449,0.0002,2]
[334597004,1723296642626,-1444.82566449,0.0002,2]
[334597005,1723296642635,-156.4788062,0.0002,2]
[334597006,1723296642644,-160.0,0.00020345,3]
[334597007,1723296642653,-47585.46464417,0.00020377,2]
[334597021,1723296642844,-4313.40610531,0.00020377,2]
[334597023,1723296643286,-9828.34192247,0.00020377,2]
[334597033,1723296646209,-85083.89332067,0.00020377,2]
[334597034,1723296646221,-1412.0,0.00020429,2]
[334597035,1723296646231,-2594.70340295,0.00020487,2]
[334597036,1723296646240,-2000.0,0.000205,2]
[334597037,1723296646251,-200.0,0.00020573,2]
[334597038,1723296646260,-200.0,0.00020573,2]
[334597039,1723296646270,-200.0,0.00020573,2]
[334597040,1723296646279,-9045.27515072,0.00020577,11]
[334597041,1723296646289,-9203.84689878,0.00020577,2]
[334597042,1723296748641,18150.4383066,0.00014826,2]
[334597044,1723296822732,162.815836,0.00014247,2]
[334597047,1723297310240,166.203532,0.00014247,2]
[334597049,1723297542143,-500.0,0.00018904,2]
[334597050,1723297542171,-225.1960746,0.0002,2]
[334597051,1723297542192,-156.4788062,0.0002,2]
[334597052,1723297542213,-427.3467713,0.0002,2]
[334597053,1723297542233,-154.76012181,0.0002,2]
[334597054,1723297542254,-1444.82566449,0.0002028,2]
[334597055,1723297542275,-620.00554809,0.00020443,2]
[334597056,1723297542296,-2270.36547759,0.00020467,2]
[334597057,1723297542317,-502.3953059,0.00020477,2]
[334597058,1723297542338,-507.0,0.00020488,2]
[334597059,1723297542359,-1122.50575245,0.00020488,2]
[334597091,1723297838516,-500.0,0.00018904,2]
[334597092,1723297838527,-7.82944601,0.00019256,2]
[334597093,1723297838540,-726.88,0.00019256,2]
[334597101,1723297840306,-2449.9943676,0.00019256,2]
[334597102,1723297840318,-235.29631202,0.00019256,2]
[334597103,1723297840327,-207.2872883,0.00019451,2]
[334597104,1723297840336,-154.76012181,0.0002,2]
[334597105,1723297840346,-309.67780799,0.0002,2]
[334597106,1723297840355,-232.77235143,0.0002,2]
[334597107,1723297840368,-1212.05331306,0.0002,2]
[334597108,1723297840377,-294.33166663,0.0002,2]
[334597109,1723297840387,-150.9,0.000202,2]
[334597110,1723297840398,-2000.0,0.00020487,2]
[334597111,1723297840407,-1190.74842788,0.00020488,2]
[334597126,1723297843212,-1383.49019153,0.00020488,2]
[334597127,1723297843440,-548.77794232,0.00020488,2]
[334597128,1723297843450,-1909.80727846,0.00020488,2]
[334597152,1723297846626,-1887.93311382,0.00020488,2]
[334597158,1723298366501,157.303351,0.00014247,2]
[334597159,1723298691865,827.7480308,0.00027,120]
[334597161,1723298742246,-250.0,0.00017269,2]
[334597162,1723298742267,-500.0,0.00018904,2]
[334597163,1723298742289,-157.728566,0.00019211,2]
[334597164,1723298742309,-8353.55132954,0.0002,2]
[334597165,1723298742330,-427.3467713,0.0002,2]
[334597166,1723298742351,-1444.82566449,0.0002,2]
[334597167,1723298742372,-1900.0000698,0.0002028,2]
[334597168,1723298742392,-417.58520774,0.00020388,2]
[334597169,1723298742412,-25167.86541547,0.00020477,11]
[334597261,1723299038632,-1900.0000698,0.00019177,2]
[334597262,1723299038642,-294.33166663,0.0002,2]
[334597263,1723299038652,-179.43353574,0.0002,2]
[334597264,1723299038662,-179.43353574,0.0002,2]
[334597265,1723299038672,-1330.6221264,0.00020467,2]
[334597269,1723299040883,-328.28270888,0.00020467,2]
[334597272,1723299041203,-809.84688704,0.00020467,2]
[334597276,1723299041215,-2412.56515024,0.00020467,2]
[334597283,1723299043546,-4290.98922493,0.00020467,2]
[334597297,1723299046575,-31521.61414501,0.00020467,2]
[334597298,1723299046584,-27750.43453879,0.00020477,11]
[334597300,1723299046594,-1627.09162866,0.00020477,2]
[334597302,1723299046604,-16845.56946308,0.00020477,2]
[334597303,1723299046613,-4778.04284509,0.00020477,2]
[334597317,1723299426978,157.726032,0.00014247,2]
[334597399,1723300243398,-500.0,0.00018904,2]
[334597401,1723300243409,-157.728566,0.00019178,2]
[334597402,1723300243418,-989.90003636,0.00019477,2]
[334597403,1723300243427,-739.86598673,0.0002,2]
[334597404,1723300243437,-427.3467713,0.0002,2]
[334597405,1723300243446,-1444.82566449,0.0002,2]
[334597406,1723300243455,-4285.52416528,0.0002,2]
[334597407,1723300243465,-294.33166663,0.0002,2]
[334597408,1723300243474,-1009.20223697,0.00020377,2]
[334597409,1723300243521,-977.36755593,0.00020377,2]
[334597410,1723300243531,-620.0002774,0.00020392,2]
[334597411,1723300243540,-160.0,0.00020397,3]
[334597412,1723300243549,-353.70747239,0.00020477,2]
[334597440,1723300438883,158.122781,0.00014247,2]
[334597444,1723300961765,187.4999377,0.00014247,2]
[334597445,1723300977196,2775.58108794,0.00014247,2]
[334597591,1723301442853,-500.0,0.00018904,2]
[334597592,1723301442863,-989.90003636,0.00019256,2]
[334597593,1723301442873,-1027.70334706,0.0002,2]
[334597594,1723301442884,-427.3467713,0.0002,2]
[334597595,1723301442894,-294.33166663,0.0002028,2]
[334597596,1723301442904,-1738.24856877,0.00020372,2]
[334597597,1723301442914,-13875.2172694,0.00020467,11]
[334597598,1723301442925,-11465.40650548,0.00020468,2]
[334597632,1723301463035,244.7942,0.00017269,2]
[334597633,1723301463058,103.85757404,0.00017269,2]
[334597635,1723301496146,116.83457907,0.00017269,2]
[334597647,1723301689824,158.122781,0.00014247,2]
[334597650,1723302153748,160.400797,0.00014247,2]
[334597653,1723302347115,-989.90003636,0.0001571,2]
[334597654,1723302347139,-500.0,0.00018904,2]
[334597655,1723302347163,-157.728566,0.00019178,2]
[334597656,1723302347186,-1412.0,0.0001982,2]
[334597657,1723302347207,-193.093508,0.00019892,2]
[334597658,1723302347227,-853.838524,0.00019892,2]
[334597659,1723302347249,-629.703852,0.00019892,2]
[334597660,1723302347270,-6715.50405279,0.0002,11]
[334597661,1723302462717,989.90003636,9.999e-05,2]
[334597683,1723302632410,-1520.96749763,0.000199,2]
[334597684,1723302632419,-11809.68816648,0.0001999,2]
[334597685,1723302632429,-10753.37409123,0.0001999,2]
[334597703,1723302638232,-611.16,0.0001999,2]
[334597753,1723302643099,-1272.41872657,0.0001999,2]
[334597760,1723302678203,158.860345,0.00014247,2]
[334597776,1723302954402,7960.31801228,0.00015,2]
[334597780,1723303535156,-157.0,0.00016038,2]
[334597781,1723303535177,-7337.60131592,0.00018182,2]
[334597782,1723303535198,-500.0,0.00018904,2]
[334597783,1723303535219,-250.0,0.00019041,2]
[334597784,1723303535241,-159.554137,0.00019178,2]
[334597785,1723303535263,-1241.600338,0.000195,3]
[334597786,1723303535283,-989.90003636,0.00019547,2]
[334597787,1723303535304,-3579.8566083,0.0001966,11]
[334597788,1723303535325,-469.553891,0.0001966,2]
[334597789,1723303535346,-469.553891,0.0001966,2]
[334597790,1723303535370,-469.553891,0.0001966,2]
[334597791,1723303535391,-469.553891,0.0001966,2]
[334597792,1723303535414,-469.553891,0.0001966,2]
[334597793,1723303535435,-469.553891,0.0001966,2]
[334597794,1723303535457,-469.553891,0.0001966,2]
[334597795,1723303535478,-469.553891,0.0001966,2]
[334597796,1723303535499,-469.553891,0.0001966,2]
[334597797,1723303535519,-469.553891,0.0001966,2]
[334597798,1723303535541,-469.553891,0.0001966,2]
[334597799,1723303535562,-469.553891,0.0001966,2]
[334597800,1723303535583,-151.0,0.0001966,2]
[334597801,1723303535608,-151.0,0.0001966,2]
[334597802,1723303535631,-151.0,0.0001966,2]
[334597803,1723303535652,-151.0,0.0001966,2]
[334597804,1723303535675,-151.0,0.0001966,2]
[334597805,1723303535696,-151.0,0.0001966,2]
[334597806,1723303535717,-151.0,0.0001966,2]
[334597807,1723303535739,-151.0,0.0001966,2]
[334597808,1723303535764,-151.0,0.0001966,2]
[334597809,1723303535786,-434.141889,0.0001966,2]
[334597810,1723303535808,-301.7956,0.0001966,2]
[334597811,1723303535831,-434.141889,0.0001966,2]
[334597812,1723303535856,-434.141889,0.0001966,2]
[334597813,1723303535880,-434.141889,0.0001966,2]
[334597814,1723303535903,-346.13962427,0.0001966,2]
[334597822,1723303647112,-989.90003636,0.00019451,2]
[334597823,1723303647133,-1161.52900216,0.0001956,2]
[334597825,1723303701142,476.20761208,0.000125,2]
[334597827,1723303780365,168.74378475,0.000125,2]
[334597828,1723303780387,153.34923008,0.000125,2]
[334597829,1723303780414,720.33754311,0.000125,2]
[334597830,1723303813879,159.165822,0.00014247,2]
[334597863,1723303832258,-500.0,0.00018904,2]
[334597864,1723303832268,-90.60283121,0.00019178,2]
[334597894,1723303838691,-67.12573579,0.00019178,2]
[334597895,1723303838701,-561.55950222,0.0001956,2]
[334597896,1723303838710,-2000.0,0.0001956,2]
[334597897,1723303838719,-1723.08850438,0.00019595,2]
[334597898,1723303838728,-1723.08850438,0.00019631,2]
[334597899,1723303838738,-1789.92830415,0.0001965,11]
[334597900,1723303838747,-54444.1053745,0.0001965,2]
[334597901,1723303838757,-249.79,0.0001965,3]
[334597902,1723303838767,-500.0,0.00019659,2]
[334597903,1723303838777,-500.0,0.00019659,2]
[334597904,1723303838786,-500.0,0.00019659,2]
[334597905,1723303838796,-503.24917362,0.00019659,2]
[334597906,1723303838810,-256.20598032,0.00019659,2]
[334597907,1723303838819,-153.0,0.00019659,2]
[334597908,1723303838828,-153.0,0.00019659,2]
[334597909,1723303838837,-153.0,0.00019659,2]
[334597910,1723303838847,-153.0,0.00019659,2]
[334597911,1723303838857,-153.0,0.00019659,2]
[334597912,1723303838866,-153.0,0.00019659,2]
[334597913,1723303838876,-153.0,0.00019659,2]
[334597914,1723303838885,-151.0,0.0001966,2]
[334597915,1723303838895,-151.0,0.0001966,2]
[334597916,1723303838906,-153.381633,0.0001966,2]
[334597917,1723303838915,-151.561584,0.0001966,2]
[334597918,1723303838926,-151.0,0.0001966,2]
[334597919,1723303838936,-151.0,0.0001966,2]
[334597920,1723303838946,-202.876898,0.0001966,2]
[334597921,1723303838956,-151.0,0.0001966,2]
[334597922,1723303838966,-151.0,0.0001966,2]
[334597923,1723303838976,-151.0,0.0001966,2]
[334597924,1723303838986,-151.0,0.0001966,2]
[334597925,1723303838996,-151.0,0.0001966,2]
[334597926,1723303839005,-151.0,0.0001966,2]
[334597927,1723303839014,-151.0,0.0001966,2]
[334597928,1723303839024,-204.617322,0.0001966,2]
[334597929,1723303839033,-151.0,0.0001966,2]
[334597930,1723303839047,-151.0,0.0001966,2]
[334597931,1723303839059,-151.0,0.0001966,2]
[334597932,1723303839070,-151.0,0.0001966,2]
[334597933,1723303839080,-151.0,0.0001966,2]
[334597934,1723303839089,-151.0,0.0001966,2]
[334597935,1723303839099,-151.0,0.0001966,2]
[334597936,1723303839109,-151.0,0.0001966,2]
[334597937,1723303839119,-151.0,0.0001966,2]
[334597938,1723303839128,-182.522005,0.0001966,2]
[334597939,1723303839139,-151.0,0.0001966,2]
[334597940,1723303839148,-151.0,0.0001966,2]
[334597941,1723303839158,-151.0,0.0001966,2]
[334597942,1723303839168,-151.0,0.0001966,2]
[334597943,1723303839178,-151.0,0.0001966,2]
[334597944,1723303839188,-151.0,0.0001966,2]
[334597945,1723303839197,-151.0,0.0001966,2]
[334597946,1723303839206,-151.0,0.0001966,2]
[334597947,1723303839215,-151.0,0.0001966,2]
[334597948,1723303839224,-282.960393,0.0001966,2]
[334597949,1723303839234,-409.779529,0.0001966,2]
[334597950,1723303839243,-409.779529,0.0001966,2]
[334597951,1723303839253,-409.779529,0.0001966,2]
[334597952,1723303839263,-409.779529,0.0001966,2]
[334597953,1723303839272,-409.779529,0.0001966,2]
[334597954,1723303839282,-409.779529,0.0001966,2]
[334597955,1723303839291,-409.779529,0.0001966,2]
[334597956,1723303839303,-409.779529,0.0001966,2]
[334597957,1723303839312,-409.779529,0.0001966,2]
[334597958,1723303839322,-409.779529,0.0001966,2]
[334597959,1723303839331,-409.779529,0.0001966,2]
[334597960,1723303839340,-409.779529,0.0001966,2]
[334597961,1723303839350,-409.779529,0.0001966,2]
[334597962,1723303839360,-409.779529,0.0001966,2]
[334597963,1723303839369,-409.779529,0.0001966,2]
[334597964,1723303839379,-409.779529,0.0001966,2]
[334597965,1723303839389,-409.779529,0.0001966,2]
[334597966,1723303839398,-409.779529,0.0001966,2]
[334597967,1723303839408,-409.779529,0.0001966,2]
[334597968,1723303839417,-409.77952,0.0001966,2]
[334597969,1723303839426,-1171.570492,0.0001966,2]
[334597970,1723303839435,-1171.570492,0.0001966,2]
[334597971,1723303839446,-1171.570492,0.0001966,2]
[334597972,1723303839455,-1171.570492,0.0001966,2]
[334597973,1723303839465,-1171.570492,0.0001966,2]
[334597974,1723303839474,-1171.570492,0.0001966,2]
[334597975,1723303839484,-151.0,0.0001966,2]
[334597976,1723303839493,-1171.570492,0.0001966,2]
[334597977,1723303839503,-273.806273,0.0001966,2]
[334597978,1723303839513,-1171.570492,0.0001966,2]
[334597979,1723303839523,-1171.570492,0.0001966,2]
[334597980,1723303839532,-1171.570492,0.0001966,2]
[334597981,1723303839541,-1171.570492,0.0001966,2]
[334597982,1723303839552,-1171.570492,0.0001966,2]
[334597983,1723303839562,-1171.570492,0.0001966,2]
[334597984,1723303839571,-1171.570492,0.0001966,2]
[334597985,1723303839581,-1171.570492,0.0001966,2]
[334597986,1723303839591,-1171.570492,0.0001966,2]
[334597987,1723303839601,-1171.570492,0.0001966,2]
[334597988,1723303839611,-1171.570492,0.0001966,2]
[334597989,1723303839620,-1171.570492,0.0001966,2]
[334597990,1723303839630,-1171.570501,0.0001966,2]
[334597991,1723303839640,-151.0,0.0001966,2]
[334597992,1723303839650,-153.818964,0.0001966,2]
[334597993,1723303839659,-151.0,0.0001966,2]
[334597994,1723303839669,-151.0,0.0001966,2]
[334597995,1723303839679,-151.0,0.0001966,2]
[334597996,1723303839689,-151.0,0.0001966,2]
[334597997,1723303839699,-151.0,0.0001966,2]
[334597998,1723303839709,-151.0,0.0001966,2]
[334597999,1723303839718,-151.0,0.0001966,2]
[334598000,1723303839728,-151.0,0.0001966,2]
[334598001,1723303839738,-187.821556,0.0001966,2]
[334598002,1723303839748,-187.821556,0.0001966,2]
[334598003,1723303839758,-187.821556,0.0001966,2]
[334598004,1723303839768,-187.821556,0.0001966,2]
[334598005,1723303839777,-187.821556,0.0001966,2]
[334598006,1723303839787,-187.821556,0.0001966,2]
[334598007,1723303839797,-187.821556,0.0001966,2]
[334598008,1723303839806,-187.821556,0.0001966,2]
[334598009,1723303839817,-187.821556,0.0001966,2]
[334598010,1723303839827,-187.821556,0.0001966,2]
[334598011,1723303839837,-187.821556,0.0001966,2]
[334598012,1723303839848,-187.821556,0.0001966,2]
[334598013,1723303839858,-187.821556,0.0001966,2]
[334598014,1723303839869,-187.821556,0.0001966,2]
[334598015,1723303839878,-187.821556,0.0001966,2]
[334598016,1723303839888,-187.821556,0.0001966,2]
[334598017,1723303839899,-187.821556,0.0001966,2]
[334598018,1723303839908,-187.821556,0.0001966,2]
[334598019,1723303839918,-187.821556,0.0001966,2]
[334598020,1723303839927,-187.821556,0.0001966,2]
[334598021,1723303839937,-162.908206,0.0001966,2]
[334598022,1723303839946,-162.908206,0.0001966,2]
[334598023,1723303839956,-162.908206,0.0001966,2]
[334598024,1723303839966,-162.908206,0.0001966,2]
[334598026,1723303839976,-162.908206,0.0001966,2]
[334598028,1723303839986,-162.908206,0.0001966,2]
[334598029,1723303839996,-162.908206,0.0001966,2]
[334598030,1723303840005,-162.908206,0.0001966,2]
[334598031,1723303840015,-162.908206,0.0001966,2]
[334598032,1723303840025,-162.908206,0.0001966,2]
[334598033,1723303840034,-162.908206,0.0001966,2]
[334598035,1723303840045,-162.908206,0.0001966,2]
[334598036,1723303840060,-162.908206,0.0001966,2]
[334598037,1723303840070,-162.908206,0.0001966,2]
[334598038,1723303840080,-162.908206,0.0001966,2]
[334598039,1723303840090,-162.908206,0.0001966,2]
[334598040,1723303840100,-162.908206,0.0001966,2]
[334598041,1723303840109,-162.908206,0.0001966,2]
[334598042,1723303840118,-162.908206,0.0001966,2]
[334598043,1723303840129,-162.908215,0.0001966,2]
[334598044,1723303840140,-164.750249,0.0001966,2]
[334598045,1723303840150,-164.750249,0.0001966,2]
[334598046,1723303840162,-164.750249,0.0001966,2]
[334598047,1723303840171,-164.750249,0.0001966,2]
[334598048,1723303840181,-164.750249,0.0001966,2]
[334598049,1723303840191,-164.750249,0.0001966,2]
[334598050,1723303840200,-164.750249,0.0001966,2]
[334598051,1723303840210,-164.750249,0.0001966,2]
[334598052,1723303840219,-164.750249,0.0001966,2]
[334598053,1723303840230,-164.750249,0.0001966,2]
[334598055,1723303840240,-164.750249,0.0001966,2]
[334598057,1723303840249,-164.750249,0.0001966,2]
[334598058,1723303840260,-164.750249,0.0001966,2]
[334598059,1723303840270,-164.750249,0.0001966,2]
[334598060,1723303840280,-164.750249,0.0001966,2]
[334598061,1723303840290,-164.750249,0.0001966,2]
[334598062,1723303840302,-164.750249,0.0001966,2]
[334598063,1723303840311,-243.109662,0.0001966,2]
[334598064,1723303840320,-164.750249,0.0001966,2]
[334598065,1723303840330,-164.750249,0.0001966,2]
[334598066,1723303840339,-164.750258,0.0001966,2]
[334598067,1723303840349,-151.0,0.0001966,2]
[334598068,1723303840359,-151.0,0.0001966,2]
[334598069,1723303840368,-151.0,0.0001966,2]
[334598070,1723303840377,-151.0,0.0001966,2]
[334598071,1723303840387,-151.0,0.0001966,2]
[334598072,1723303840397,-151.0,0.0001966,2]
[334598073,1723303840407,-151.0,0.0001966,2]
[334598074,1723303840416,-151.0,0.0001966,2]
[334598075,1723303840600,-151.0,0.0001966,2]
[334598076,1723303840610,-151.0,0.0001966,2]
[334598077,1723303840619,-151.0,0.0001966,2]
[334598078,1723303840629,-151.0,0.0001966,2]
[334598079,1723303840638,-151.0,0.0001966,2]
[334598080,1723303840647,-151.0,0.0001966,2]
[334598081,1723303840657,-151.0,0.0001966,2]
[334598082,1723303840666,-151.0,0.0001966,2]
[334598083,1723303840676,-151.0,0.0001966,2]
[334598084,1723303840686,-154.494734,0.0001966,2]
[334598085,1723303840695,-434.141889,0.0001966,2]
[334598086,1723303840705,-434.141889,0.0001966,2]
[334598087,1723303840717,-434.141889,0.0001966,2]
[334598088,1723303840727,-434.141889,0.0001966,2]
[334598089,1723303840736,-434.141889,0.0001966,2]
[334598090,1723303840747,-434.141889,0.0001966,2]
[334598091,1723303840758,-434.141889,0.0001966,2]
[334598092,1723303840769,-434.141889,0.0001966,2]
[334598093,1723303840778,-434.141889,0.0001966,2]
[334598094,1723303840788,-434.141889,0.0001966,2]
[334598095,1723303840797,-434.141889,0.0001966,2]
[334598096,1723303840806,-434.141889,0.0001966,2]
[334598097,1723303840815,-434.141889,0.0001966,2]
[334598098,1723303840825,-434.141889,0.0001966,2]
[334598099,1723303840835,-434.141889,0.0001966,2]
[334598100,1723303840847,-434.141889,0.0001966,2]
[334598101,1723303840857,-434.141889,0.0001966,2]
[334598102,1723303840867,-434.141889,0.0001966,2]
[334598103,1723303840877,-434.141889,0.0001966,2]
[334598104,1723303840886,-434.14188724,0.0001966,2]
[334598105,1723303840895,-151.0,0.0001966,2]
[334598106,1723303840904,-151.0,0.0001966,2]
[334598107,1723303840914,-288.807923,0.0001966,2]
[334598108,1723303840923,-288.807923,0.0001966,2]
[334598109,1723303840932,-288.807923,0.0001966,2]
[334598110,1723303840942,-288.807923,0.0001966,2]
[334598111,1723303840951,-288.807923,0.0001966,2]
[334598112,1723303840962,-288.807923,0.0001966,2]
[334598113,1723303840972,-288.807923,0.0001966,2]
[334598114,1723303840982,-288.807923,0.0001966,2]
[334598115,1723303840992,-288.807923,0.0001966,2]
[334598116,1723303841001,-288.807923,0.0001966,2]
[334598117,1723303841011,-288.807923,0.0001966,2]
[334598118,1723303841020,-288.807923,0.0001966,2]
[334598119,1723303841029,-288.807923,0.0001966,2]
[334598120,1723303841040,-288.807923,0.0001966,2]
[334598121,1723303841051,-288.807923,0.0001966,2]
[334598122,1723303841065,-288.807923,0.0001966,2]
[334598123,1723303841075,-288.807923,0.0001966,2]
[334598124,1723303841085,-288.807923,0.0001966,2]
[334598125,1723303841095,-288.807923,0.0001966,2]
[334598126,1723303841105,-288.807928,0.0001966,2]
[334598127,1723303841115,-692.097073,0.0001966,2]
[334598128,1723303841124,-692.097073,0.0001966,2]
[334598129,1723303841137,-692.097073,0.0001966,2]
[334598130,1723303841147,-264.279785,0.0001966,2]
[334598131,1723303841156,-692.097073,0.0001966,2]
[334598132,1723303841165,-692.097073,0.0001966,2]
[334598133,1723303841174,-264.279785,0.0001966,2]
[334598134,1723303841184,-692.097073,0.0001966,2]
[334598135,1723303841193,-264.279785,0.0001966,2]
[334598136,1723303841203,-692.097073,0.0001966,2]
[334598137,1723303841212,-264.279785,0.0001966,2]
[334598138,1723303841221,-264.279785,0.0001966,2]
[334598139,1723303841231,-692.097073,0.0001966,2]
[334598140,1723303841240,-264.279785,0.0001966,2]
[334598141,1723303841249,-692.097073,0.0001966,2]
[334598142,1723303841258,-264.279785,0.0001966,2]
[334598143,1723303841267,-692.097073,0.0001966,2]
[334598144,1723303841277,-264.279785,0.0001966,2]
[334598145,1723303841287,-692.097073,0.0001966,2]
[334598146,1723303841297,-264.279785,0.0001966,2]
[334598147,1723303841306,-692.097073,0.0001966,2]
[334598148,1723303841315,-264.279785,0.0001966,2]
[334598149,1723303841324,-692.097073,0.0001966,2]
[334598150,1723303841333,-264.279785,0.0001966,2]
[334598151,1723303841343,-264.279785,0.0001966,2]
[334598152,1723303841354,-264.279785,0.0001966,2]
[334598153,1723303841364,-692.097073,0.0001966,2]
[334598154,1723303841374,-264.279785,0.0001966,2]
[334598155,1723303841383,-692.097073,0.0001966,2]
[334598156,1723303841393,-264.279785,0.0001966,2]
[334598157,1723303841402,-692.097073,0.0001966,2]
[334598158,1723303841412,-264.279785,0.0001966,2]
[334598159,1723303841422,-692.097073,0.0001966,2]
[334598160,1723303841431,-264.279785,0.0001966,2]
[334598161,1723303841442,-692.097073,0.0001966,2]
[334598162,1723303841452,-264.279785,0.0001966,2]
[334598163,1723303841463,-692.097073,0.0001966,2]
[334598164,1723303841473,-264.279785,0.0001966,2]
[334598165,1723303841483,-692.097067,0.0001966,2]
[334598166,1723303841492,-264.279784,0.0001966,2]
[334598167,1723303841502,-445.403825,0.0001966,2]
[334598168,1723303841511,-445.403825,0.0001966,2]
[334598169,1723303841522,-445.403825,0.0001966,2]
[334598170,1723303841531,-445.403825,0.0001966,2]
[334598171,1723303841541,-445.403825,0.0001966,2]
[334598172,1723303841551,-445.403825,0.0001966,2]
[334598173,1723303841560,-445.403825,0.0001966,2]
[334598174,1723303841570,-612.721247,0.0001966,2]
[334598175,1723303841580,-445.403825,0.0001966,2]
[334598176,1723303841590,-612.721247,0.0001966,2]
[334598177,1723303841600,-445.403825,0.0001966,2]
[334598178,1723303841609,-612.721247,0.0001966,2]
[334598179,1723303841619,-445.403825,0.0001966,2]
[334598180,1723303841628,-612.721247,0.0001966,2]
[334598181,1723303841638,-445.403825,0.0001966,2]
[334598182,1723303841647,-612.721247,0.0001966,2]
[334598183,1723303841656,-445.403825,0.0001966,2]
[334598184,1723303841666,-445.403825,0.0001966,2]
[334598185,1723303841675,-612.721247,0.0001966,2]
[334598186,1723303841684,-445.403825,0.0001966,2]
[334598187,1723303841694,-612.721247,0.0001966,2]
[334598188,1723303841704,-445.403825,0.0001966,2]
[334598189,1723303841713,-612.721247,0.0001966,2]
[334598190,1723303841722,-445.403825,0.0001966,2]
[334598191,1723303841731,-612.721247,0.0001966,2]
[334598192,1723303841740,-445.403825,0.0001966,2]
[334598193,1723303841750,-612.721247,0.0001966,2]
[334598194,1723303841760,-445.403825,0.0001966,2]
[334598195,1723303841769,-612.721247,0.0001966,2]
[334598196,1723303841778,-445.403825,0.0001966,2]
[334598197,1723303841788,-612.721247,0.0001966,2]
[334598198,1723303841797,-445.403829,0.0001966,2]
[334598199,1723303841806,-612.721247,0.0001966,2]
[334598200,1723303841816,-612.721247,0.0001966,2]
[334598201,1723303841825,-612.721247,0.0001966,2]
[334598202,1723303841834,-612.721247,0.0001966,2]
[334598203,1723303841843,-612.721247,0.0001966,2]
[334598204,1723303841852,-612.721247,0.0001966,2]
[334598205,1723303841863,-612.721247,0.0001966,2]
[334598206,1723303841872,-612.72125,0.0001966,2]
[334598207,1723303841881,-151.0,0.0001966,2]
[334598208,1723303841891,-151.0,0.0001966,2]
[334598209,1723303841900,-153.0,0.0001966,2]
[334598210,1723303841909,-153.0,0.0001966,2]
[334598211,1723303841918,-153.0,0.0001966,2]
[334598212,1723303841927,-153.0,0.0001966,2]
[334598213,1723303841936,-153.0,0.0001966,2]
[334598214,1723303841945,-153.0,0.0001966,2]
[334598215,1723303841955,-153.0,0.0001966,2]
[334598216,1723303841966,-153.0,0.0001966,2]
[334598217,1723303841975,-153.0,0.0001966,2]
[334598218,1723303841984,-153.0,0.0001966,2]
[334598219,1723303841994,-153.0,0.0001966,2]
[334598220,1723303842004,-153.0,0.0001966,2]
[334598221,1723303842013,-153.0,0.0001966,2]
[334598222,1723303842022,-153.0,0.0001966,2]
[334598223,1723303842031,-153.0,0.0001966,2]